fUSD/lending_fUSD_20260112
["ID","MTS","AMOUNT","RATE_DAILY","PERIOD"]
[401425453,1768203053135,-584.221,0.00017847,2]
[401425454,1768203053146,-25000.0,0.00017847,3]
[401425455,1768203053157,-150.0,0.0001785,2]
[401425456,1768203053168,-150.0,0.0001785,2]
[401425457,1768203053180,-331.18764993,0.00017855,2]
[401425458,1768203053191,-200.0,0.00017855,2]
[401425459,1768203053202,-25000.0,0.00017856,3]
[401425460,1768203053213,-200.0,0.00017856,2]
[401425461,1768203053224,-1134.50382,0.0001786,2]
[401425462,1768203053235,-150.0,0.00017862,2]
[401425463,1768203053246,-1000.0,0.00017862,2]
[401425464,1768203053257,-25000.0,0.00017865,3]
[401425465,1768203053268,-150.0,0.00017871,2]
[401425466,1768203053279,-331.18764993,0.00017873,2]
[401425467,1768203053290,-1000.0,0.00017873,2]
[401425468,1768203053301,-25000.0,0.00017874,3]
[401425469,1768203053313,-150.0,0.0001788,2]
[401425470,1768203053324,-1134.50383,0.0001788,2]
[401425471,1768203053335,-25000.0,0.00017882,3]
[401425472,1768203053347,-150.0,0.00017887,2]
[401425473,1768203053358,-150.0,0.00017887,2]
[401425474,1768203053369,-1000.0,0.0001789,2]
[401425475,1768203053380,-331.18764993,0.00017891,2]
[401425476,1768203053392,-25000.0,0.00017891,3]
[401425477,1768203053404,-1683.5,0.00017898,2]
[401425478,1768203053415,-500.0,0.00017899,2]
[401425479,1768203053426,-1063.57,0.00017899,2]
[401425480,1768203053437,-4831.1649,0.000179,2]
[401425481,1768203053448,-8365.1305,0.000179,2]
[401425482,1768203053460,-33596.3197,0.000179,2]
[401425483,1768203053471,-25000.0,0.000179,3]
[401425484,1768203053482,-793.70044884,0.000179,2]
[401425485,1768203053493,-1054.4366,0.000179,2]
[401425486,1768203053504,-14981.27545297,0.000179,3]
[401425487,1768203053515,-1218.18097026,0.000179,2]
[401425488,1768203053527,-1218.18097026,0.000179,2]
[401425489,1768203053538,-1218.18097026,0.000179,2]
[401425490,1768203053550,-1218.18097026,0.000179,2]
[401425491,1768203053561,-1218.18097026,0.000179,2]
[401425492,1768203053574,-1218.18097026,0.000179,2]
[401425493,1768203053586,-317.89217191,0.000179,2]
[401425494,1768203053598,-1218.18097026,0.000179,2]
[401425495,1768203053609,-1218.18097026,0.000179,2]
[401425496,1768203053620,-1218.18097026,0.000179,2]
[401425497,1768203053632,-1438.0,0.000179,6]
[401425498,1768203053643,-1218.18097026,0.000179,2]
[401425499,1768203053655,-1218.18097026,0.000179,2]
[401425500,1768203053666,-1218.18097026,0.000179,2]
[401425501,1768203053678,-1218.18097026,0.000179,2]
[401425502,1768203053690,-9602.32000232,0.000179,2]
[401425503,1768203053701,-8409.98178801,0.000179,2]
[401425504,1768203053713,-2987.79350316,0.000179,2]
[401425505,1768203053725,-2090.29615035,0.000179,2]
[401425506,1768203053738,-8478.0,0.000179,2]
[401425507,1768203053750,-222.97211581,0.00017906,2]
[401425508,1768203053762,-331.18764993,0.00017909,2]
[401425509,1768203053774,-150.0,0.0001791,2]
[401425510,1768203053786,-1134.50382,0.0001791,2]
[401425511,1768203053798,-1000.0,0.00017913,2]
[401425512,1768203053810,-1000.0,0.00017916,2]
[401425513,1768203053822,-1000.0,0.00017917,2]
[401425514,1768203053834,-150.0,0.00017925,2]
[401425515,1768203053846,-150.0,0.00017925,2]
[401425516,1768203053857,-331.18764993,0.00017927,2]
[401425517,1768203053869,-331.18764993,0.00017945,2]
[401425518,1768203053880,-1000.0,0.00017947,2]
[401425519,1768203053892,-154.361437,0.00017947,2]
[401425520,1768203053903,-151.0,0.00017947,2]
[401425521,1768203053915,-1767.548746,0.00017947,2]
[401425522,1768203053926,-501.106021,0.00017947,2]
[401425523,1768203053938,-1767.548746,0.00017947,2]
[401425524,1768203053949,-151.0,0.00017947,2]
[401425525,1768203053961,-501.106021,0.00017947,2]
[401425526,1768203053972,-402.021243,0.00017947,2]
[401425527,1768203053984,-1767.548746,0.00017947,2]
[401425528,1768203053996,-257.783842,0.00017947,2]
[401425529,1768203054010,-501.106021,0.00017947,2]
[401425530,1768203054559,-1767.548746,0.00017947,2]
[401425531,1768203054592,-501.106021,0.00017947,2]
[401425532,1768203054611,-151.0,0.00017947,2]
[401425533,1768203054622,-402.021243,0.00017947,2]
[401425534,1768203054631,-297.170586,0.00017947,2]
[401425535,1768203054640,-402.021243,0.00017947,2]
[401425536,1768203054650,-151.0,0.00017947,2]
[401425537,1768203054660,-878.078272,0.00017947,2]
[401425538,1768203054669,-203.639295,0.00017947,2]
[401425539,1768203054677,-464.411102,0.00017947,2]
[401425540,1768203054685,-297.170586,0.00017947,2]
[401425541,1768203054692,-402.021243,0.00017947,2]
[401425542,1768203054700,-151.0,0.00017947,2]
[401425543,1768203054708,-151.0,0.00017947,2]
[401425544,1768203054717,-878.078272,0.00017947,2]
[401425545,1768203054726,-464.411102,0.00017947,2]
[401425546,1768203054735,-297.170586,0.00017947,2]
[401425547,1768203054744,-878.078272,0.00017947,2]
[401425548,1768203054754,-464.411102,0.00017947,2]
[401425549,1768203054763,-297.170586,0.00017947,2]
[401425550,1768203054773,-878.078272,0.00017947,2]
[401425551,1768203054782,-464.411102,0.00017947,2]
[401425552,1768203054792,-2696.745961,0.00017947,2]
[401425553,1768203054801,-151.0,0.00017947,2]
[401425554,1768203054813,-1159.429831,0.00017947,2]
[401425555,1768203054823,-2696.745961,0.00017947,2]
[401425556,1768203054832,-182.853172,0.00017947,2]
[401425557,1768203054841,-1159.429831,0.00017947,2]
[401425558,1768203054850,-2696.745961,0.00017947,2]
[401425559,1768203054860,-1159.429831,0.00017947,2]
[401425560,1768203054870,-2696.745961,0.00017947,2]
[401425561,1768203054880,-1680.772685,0.00017947,2]
[401425562,1768203054889,-1159.429831,0.00017947,2]
[401425563,1768203054898,-1680.772685,0.00017947,2]
[401425564,1768203054907,-2139.417501,0.00017947,2]
[401425565,1768203054916,-853.096536,0.00017947,2]
[401425566,1768203054926,-2139.417501,0.00017947,2]
[401425567,1768203054935,-1680.772685,0.00017947,2]
[401425568,1768203054945,-853.096536,0.00017947,2]
[401425569,1768203054954,-2139.417501,0.00017947,2]
[401425570,1768203054968,-1680.772685,0.00017947,2]
[401425571,1768203054978,-853.096536,0.00017947,2]
[401425572,1768203054988,-2139.417501,0.00017947,2]
[401425573,1768203054998,-853.096536,0.00017947,2]
[401425574,1768203055010,-151.0,0.00017947,2]
[401425575,1768203055019,-325.126375,0.00017947,2]
[401425576,1768203055029,-325.126375,0.00017947,2]
[401425577,1768203055039,-325.126375,0.00017947,2]
[401425578,1768203055048,-325.126375,0.00017947,2]
[401425579,1768203055057,-265.669936,0.00017947,2]
[401425580,1768203055068,-151.0,0.00017947,2]
[401425581,1768203055077,-151.0,0.00017947,2]
[401425582,1768203055086,-151.0,0.00017947,2]
[401425583,1768203055097,-151.0,0.00017947,2]
[401425584,1768203055106,-201.714843,0.00017947,2]
[401425585,1768203055116,-273.411244,0.00017947,2]
[401425586,1768203055125,-585.678073,0.00017947,2]
[401425587,1768203055134,-585.678073,0.00017947,2]
[401425588,1768203055144,-585.678073,0.00017947,2]
[401425589,1768203055153,-291.883143,0.00017947,2]
[401425590,1768203055162,-585.678073,0.00017947,2]
[401425591,1768203055171,-291.883143,0.00017947,2]
[401425592,1768203055180,-291.883143,0.00017947,2]
[401425593,1768203055190,-190.724249,0.00017947,2]
[401425594,1768203055200,-291.883143,0.00017947,2]
[401425595,1768203055211,-190.724249,0.00017947,2]
[401425596,1768203055221,-2569.014088,0.00017947,2]
[401425597,1768203055230,-151.0,0.00017947,2]
[401425598,1768203055239,-4431.472038,0.00017947,2]
[401425599,1768203055250,-190.724249,0.00017947,2]
[401425600,1768203055261,-2569.014088,0.00017947,2]
[401425601,1768203055270,-151.0,0.00017947,2]
[401425602,1768203055280,-151.0,0.00017947,2]
[401425603,1768203055290,-190.724249,0.00017947,2]
[401425604,1768203055300,-1594.507081,0.00017947,2]
[401425605,1768203055311,-4431.472038,0.00017947,2]
[401425606,1768203055323,-2569.014088,0.00017947,2]
[401425607,1768203055340,-151.0,0.00017947,2]
[401425608,1768203055351,-151.0,0.00017947,2]
[401425609,1768203055363,-1594.507081,0.00017947,2]
[401425610,1768203055373,-4431.472038,0.00017947,2]
[401425611,1768203055383,-151.0,0.00017947,2]
[401425612,1768203055393,-211.871892,0.00017947,2]
[401425613,1768203055403,-2569.014088,0.00017947,2]
[401425614,1768203055413,-1594.507081,0.00017947,2]
[401425615,1768203055423,-4431.472038,0.00017947,2]
[401425616,1768203055433,-200.139122,0.00017947,2]
[401425617,1768203055443,-1594.507081,0.00017947,2]
[401425618,1768203055456,-1668.181417,0.00017947,2]
[401425619,1768203055465,-200.139122,0.00017947,2]
[401425620,1768203055476,-173.912987,0.00017947,2]
[401425621,1768203055486,-200.139122,0.00017947,2]
[401425622,1768203055496,-1668.181417,0.00017947,2]
[401425623,1768203055506,-173.912987,0.00017947,2]
[401425624,1768203055516,-179.019883,0.00017947,2]
[401425625,1768203055526,-151.0,0.00017947,2]
[401425626,1768203055536,-200.139122,0.00017947,2]
[401425627,1768203055545,-1668.181417,0.00017947,2]
[401425628,1768203055554,-173.912987,0.00017947,2]
[401425629,1768203055564,-1000.0,0.00017959,2]
[401425630,1768203055573,-331.18764993,0.00017964,2]
[401425631,1768203055583,-500.0,0.00017973,2]
[401425632,1768203055593,-381.34584895,0.00017973,2]
[401425633,1768203055602,-501.47661499,0.00017973,2]
[401425634,1768203055612,-644.05438872,0.00017973,2]
[401425635,1768203055622,-502.23302881,0.00017973,2]
[401425636,1768203055631,-501.12911319,0.00017973,2]
[401425637,1768203055640,-503.85916191,0.00017973,2]
[401425638,1768203055650,-501.78685961,0.00017973,2]
[401425639,1768203055659,-500.0,0.00017973,2]
[401425640,1768203055668,-500.55153068,0.00017973,2]
[401425641,1768203055677,-503.67264874,0.00017973,2]
[401425642,1768203055686,-498.39272947,0.00017973,2]
[401425643,1768203055695,-501.38258594,0.00017973,2]
[401425644,1768203055704,-501.10571804,0.00017973,2]
[401425645,1768203055715,-500.0,0.00017973,2]
[401425646,1768203055724,-500.0,0.00017973,2]
[401425647,1768203055733,-502.86808452,0.00017973,2]
[401425648,1768203055743,-515.69548792,0.00017973,2]
[401425649,1768203055752,-500.0,0.00017973,2]
[401425650,1768203055762,-162.447438,0.00017973,2]
[401425651,1768203055771,-473.824202,0.00017973,2]
[401425652,1768203055781,-473.824202,0.00017973,2]
[401425653,1768203055790,-473.824202,0.00017973,2]
[401425654,1768203055799,-473.824202,0.00017973,2]
[401425655,1768203055808,-151.0,0.00017973,2]
[401425656,1768203055818,-151.0,0.00017973,2]
[401425657,1768203055827,-151.0,0.00017973,2]
[401425658,1768203055836,-151.0,0.00017973,2]
[401425659,1768203055846,-151.0,0.00017973,2]
[401425660,1768203055855,-151.0,0.00017973,2]
[401425661,1768203055865,-151.0,0.00017973,2]
[401425662,1768203055875,-151.0,0.00017973,2]
[401425663,1768203055885,-151.0,0.00017973,2]
[401425664,1768203055894,-151.0,0.00017973,2]
[401425665,1768203055905,-151.0,0.00017973,2]
[401425666,1768203055914,-151.0,0.00017973,2]
[401425667,1768203055923,-421.950315,0.00017973,2]
[401425668,1768203055932,-153.895125,0.00017973,2]
[401425669,1768203055941,-421.950315,0.00017973,2]
[401425670,1768203055950,-421.950315,0.00017973,2]
[401425671,1768203055961,-421.950315,0.00017973,2]
[401425672,1768203055969,-151.0,0.00017973,2]
[401425673,1768203055979,-151.0,0.00017973,2]
[401425674,1768203055988,-151.0,0.00017973,2]
[401425675,1768203055997,-736.421096,0.00017973,2]
[401425676,1768203056009,-151.0,0.00017973,2]
[401425677,1768203056018,-151.0,0.00017973,2]
[401425678,1768203056028,-736.421096,0.00017973,2]
[401425679,1768203056038,-736.421096,0.00017973,2]
[401425680,1768203056048,-736.421096,0.00017973,2]
[401425681,1768203056058,-151.0,0.00017973,2]
[401425682,1768203056069,-185.6480238,0.00017973,2]
[401425683,1768203056081,-151.0,0.00017973,2]
[401425684,1768203056092,-151.0,0.00017973,2]
[401425685,1768203056103,-151.0,0.00017973,2]
[401425686,1768203056115,-380.423287,0.00017973,2]
[401425687,1768203056125,-380.423287,0.00017973,2]
[401425688,1768203056135,-380.423287,0.00017973,2]
[401425689,1768203056144,-151.0,0.00017973,2]
[401425690,1768203056155,-895.101573,0.00017973,2]
[401425691,1768203056166,-380.423287,0.00017973,2]
[401425692,1768203056176,-151.0,0.00017973,2]
[401425693,1768203056186,-895.101573,0.00017973,2]
[401425694,1768203056196,-438.167901,0.00017973,2]
[401425695,1768203056208,-151.0,0.00017973,2]
[401425696,1768203056217,-438.167901,0.00017973,2]
[401425697,1768203056226,-151.0,0.00017973,2]
[401425698,1768203056235,-438.167901,0.00017973,2]
[401425699,1768203056245,-151.0,0.00017973,2]
[401425700,1768203056254,-438.167901,0.00017973,2]
[401425701,1768203056263,-151.0,0.00017973,2]
[401425702,1768203056272,-151.0,0.00017973,2]
[401425703,1768203056281,-874.374949,0.00017973,2]
[401425704,1768203056290,-874.374949,0.00017973,2]
[401425705,1768203056299,-883.673582,0.00017973,2]
[401425706,1768203056308,-874.374949,0.00017973,2]
[401425707,1768203056318,-883.673582,0.00017973,2]
[401425708,1768203056327,-874.374949,0.00017973,2]
[401425709,1768203056336,-883.673582,0.00017973,2]
[401425710,1768203056346,-883.673582,0.00017973,2]
[401425711,1768203056355,-151.0,0.00017973,2]
[401425712,1768203056365,-151.0,0.00017973,2]
[401425713,1768203056375,-151.0,0.00017973,2]
[401425714,1768203056384,-162.036793,0.00017973,2]
[401425715,1768203056394,-151.0,0.00017973,2]
[401425716,1768203056403,-151.0,0.00017973,2]
[401425717,1768203056412,-151.0,0.00017973,2]
[401425718,1768203056421,-487.3351,0.00017973,2]
[401425719,1768203056431,-151.0,0.00017973,2]
[401425720,1768203056440,-151.0,0.00017973,2]
[401425721,1768203056449,-487.3351,0.00017973,2]
[401425722,1768203056459,-151.0,0.00017973,2]
[401425723,1768203056468,-151.0,0.00017973,2]
[401425724,1768203056477,-487.3351,0.00017973,2]
[401425725,1768203056486,-487.3351,0.00017973,2]
[401425726,1768203056496,-151.0,0.00017973,2]
[401425727,1768203056506,-151.0,0.00017973,2]
[401425728,1768203056515,-151.0,0.00017973,2]
[401425729,1768203056524,-268.270545,0.00017973,2]
[401425730,1768203056534,-268.270545,0.00017973,2]
[401425731,1768203056543,-268.270545,0.00017973,2]
[401425732,1768203056552,-189.664286,0.00017973,2]
[401425733,1768203056568,-151.0,0.00017973,2]
[401425734,1768203056577,-268.270545,0.00017973,2]
[401425735,1768203056586,-189.664286,0.00017973,2]
[401425736,1768203056595,-174.035148,0.00017973,2]
[401425737,1768203056604,-189.664286,0.00017973,2]
[401425738,1768203056614,-378.862944,0.00017973,2]
[401425739,1768203056623,-193.153439,0.00017973,2]
[401425740,1768203056632,-189.664286,0.00017973,2]
[401425741,1768203056641,-378.862944,0.00017973,2]
[401425742,1768203056652,-475.742154,0.00017973,2]
[401425743,1768203056661,-193.153439,0.00017973,2]
[401425744,1768203056671,-151.0,0.00017973,2]
[401425745,1768203056681,-475.742154,0.00017973,2]
[401425746,1768203056691,-378.862944,0.00017973,2]
[401425747,1768203056700,-193.153439,0.00017973,2]
[401425748,1768203056709,-703.58973,0.00017973,2]
[401425749,1768203056719,-378.862944,0.00017973,2]
[401425750,1768203056728,-475.742154,0.00017973,2]
[401425751,1768203056737,-193.153439,0.00017973,2]
[401425752,1768203056746,-703.58973,0.00017973,2]
[401425753,1768203056755,-151.0,0.00017973,2]
[401425754,1768203056764,-475.742154,0.00017973,2]
[401425755,1768203056775,-703.58973,0.00017973,2]
[401425756,1768203056784,-151.0,0.00017973,2]
[401425757,1768203056793,-506.307155,0.00017973,2]
[401425758,1768203056802,-151.0,0.00017973,2]
[401425759,1768203056811,-703.58973,0.00017973,2]
[401425760,1768203056820,-506.307155,0.00017973,2]
[401425761,1768203056829,-151.0,0.00017973,2]
[401425762,1768203056840,-151.0,0.00017973,2]
[401425763,1768203056849,-506.307155,0.00017973,2]
[401425764,1768203056858,-151.0,0.00017973,2]
[401425765,1768203056867,-506.307155,0.00017973,2]
[401425766,1768203056876,-151.0,0.00017973,2]
[401425767,1768203056885,-323.444424,0.00017973,2]
[401425768,1768203056895,-323.444424,0.00017973,2]
[401425769,1768203056904,-323.444424,0.00017973,2]
[401425770,1768203056915,-323.444424,0.00017973,2]
[401425771,1768203056927,-151.0,0.00017973,2]
[401425772,1768203056938,-193.890203,0.00017973,2]
[401425773,1768203056947,-151.0,0.00017973,2]
[401425774,1768203056956,-151.0,0.00017973,2]
[401425775,1768203056965,-264.488587,0.00017973,2]
[401425776,1768203056975,-151.0,0.00017973,2]
[401425777,1768203056985,-406.875021,0.00017973,2]
[401425778,1768203056996,-264.488587,0.00017973,2]
[401425779,1768203057011,-151.0,0.00017973,2]
[401425780,1768203057020,-406.875021,0.00017973,2]
[401425781,1768203057030,-264.488587,0.00017973,2]
[401425782,1768203057042,-406.875021,0.00017973,2]
[401425783,1768203057053,-264.488587,0.00017973,2]
[401425784,1768203057064,-406.875021,0.00017973,2]
[401425785,1768203057077,-151.0,0.00017973,2]
[401425786,1768203057090,-151.0,0.00017973,2]
[401425787,1768203057100,-413.911364,0.00017973,2]
[401425788,1768203057109,-413.911364,0.00017973,2]
[401425789,1768203057119,-413.911364,0.00017973,2]
[401425790,1768203057128,-413.911364,0.00017973,2]
[401425791,1768203057138,-151.0,0.00017973,2]
[401425792,1768203057147,-178.723506,0.00017973,2]
[401425793,1768203057157,-777.804847,0.00017973,2]
[401425794,1768203057166,-151.0,0.00017973,2]
[401425795,1768203057175,-404.421894,0.00017973,2]
[401425796,1768203057185,-151.0,0.00017973,2]
[401425797,1768203057194,-777.804847,0.00017973,2]
[401425798,1768203057204,-151.0,0.00017973,2]
[401425799,1768203057214,-492.569989,0.00017973,2]
[401425800,1768203057223,-151.0,0.00017973,2]
[401425801,1768203057232,-404.421894,0.00017973,2]
[401425802,1768203057242,-777.804847,0.00017973,2]
[401425803,1768203057251,-151.0,0.00017973,2]
[401425804,1768203057260,-1240.532451,0.00017973,2]
[401425805,1768203057270,-492.569989,0.00017973,2]
[401425806,1768203057279,-151.0,0.00017973,2]
[401425807,1768203057290,-404.421894,0.00017973,2]
[401425808,1768203057299,-777.804847,0.00017973,2]
[401425809,1768203057308,-1240.532451,0.00017973,2]
[401425810,1768203057317,-492.569989,0.00017973,2]
[401425811,1768203057327,-866.607694,0.00017973,2]
[401425812,1768203057336,-404.421894,0.00017973,2]
[401425813,1768203057346,-1240.532451,0.00017973,2]
[401425814,1768203057355,-492.569989,0.00017973,2]
[401425815,1768203057365,-866.607694,0.00017973,2]
[401425816,1768203057374,-1240.532451,0.00017973,2]
[401425817,1768203057387,-866.607694,0.00017973,2]
[401425818,1768203057397,-151.0,0.00017973,2]
[401425819,1768203057407,-866.607694,0.00017973,2]
[401425820,1768203057417,-151.0,0.00017973,2]
[401425821,1768203057427,-236.318865,0.00017973,2]
[401425822,1768203057436,-151.0,0.00017973,2]
[401425823,1768203057446,-151.0,0.00017973,2]
[401425824,1768203057456,-151.0,0.00017973,2]
[401425825,1768203057466,-151.0,0.00017973,2]
[401425826,1768203057476,-876.570737,0.00017973,2]
[401425827,1768203057486,-151.0,0.00017973,2]
[401425828,1768203057497,-876.570737,0.00017973,2]
[401425829,1768203057507,-151.0,0.00017973,2]
[401425830,1768203057517,-876.570737,0.00017973,2]
[401425831,1768203057527,-151.0,0.00017973,2]
[401425832,1768203057537,-876.570737,0.00017973,2]
[401425833,1768203057547,-151.0,0.00017973,2]
[401425834,1768203057558,-151.0,0.00017973,2]
[401425835,1768203057567,-151.0,0.00017973,2]
[401425836,1768203057582,-151.0,0.00017973,2]
[401425837,1768203057592,-151.0,0.00017973,2]
[401425838,1768203057602,-151.0,0.00017973,2]
[401425839,1768203057612,-151.0,0.00017973,2]
[401425840,1768203057622,-189.794897,0.00017973,2]
[401425841,1768203057632,-151.0,0.00017973,2]
[401425842,1768203057643,-151.0,0.00017973,2]
[401425843,1768203057653,-331.18764993,0.00017982,2]
[401425844,1768203057663,-152.92662848,0.00017982,2]
[401425845,1768203057673,-500.0,0.00017982,2]
[401425846,1768203057683,-1856.57725944,0.0001799,2]
[401425847,1768203057693,-1047.04298225,0.0001799,2]
[401425848,1768203057702,-1063.57,0.00017998,2]
[401425849,1768203057712,-300.0,0.00017999,2]
[401425850,1768203057721,-500.0,0.00017999,2]
[401425851,1768203057731,-500.0,0.00017999,2]
[401425852,1768203057740,-500.0,0.00017999,2]
[401425853,1768203057750,-500.0,0.00017999,2]
[401425854,1768203057759,-500.0,0.00017999,2]
[401425855,1768203057773,-500.0,0.00017999,2]
[401425856,1768203057783,-500.0,0.00017999,2]
[401425857,1768203057792,-456.07319796,0.00017999,2]
[401425858,1768203057802,-670.95106238,0.00017999,2]
[401425859,1768203057812,-300.0,0.00017999,2]
[401425860,1768203057821,-500.0,0.00017999,2]
[401425861,1768203057831,-500.0,0.00017999,2]
[401425862,1768203057840,-510.98377513,0.00017999,2]
[401425863,1768203057850,-300.0,0.00017999,2]
[401425864,1768203057859,-666.0,0.00017999,2]
[401425865,1768203057869,-300.0,0.00017999,2]
[401425866,1768203057879,-300.0,0.00017999,2]
[401425867,1768203057889,-306.89017358,0.00017999,2]
[401425868,1768203057898,-14302.37222132,0.00017999,2]
[401425869,1768203057907,-300.0,0.00017999,2]
[401425870,1768203057917,-666.0,0.00017999,2]
[401425871,1768203057926,-1063.57,0.00017999,2]
[401425872,1768203057935,-1063.57,0.00017999,2]
[401425873,1768203057945,-300.0,0.00017999,2]
[401425874,1768203057957,-1063.57,0.00017999,2]
[401425875,1768203057966,-1063.57,0.00017999,2]
[401425876,1768203057976,-1063.57,0.00017999,2]
[401425877,1768203057986,-1063.57,0.00017999,2]
[401425878,1768203057995,-1063.66509882,0.00017999,2]
[401425879,1768203058007,-156.71525667,0.00018,2]
[401425880,1768203058017,-154.38953807,0.00018,2]
[401425881,1768203058026,-263.65847092,0.00018,2]
[401425882,1768203058036,-331.18764993,0.00018,2]
[401425883,1768203058046,-155.07098725,0.00018,2]
[401425884,1768203058056,-152.37123583,0.00018,2]
[401425885,1768203058066,-150.00000001,0.00018,2]
[401425886,1768203058078,-151.45444701,0.00018,2]
[401425887,1768203058087,-155.70825827,0.00018,2]
[401425888,1768203058097,-248.59699216,0.00018,2]
[401425889,1768203058421,-154.70586823,0.00018,2]
[401425890,1768203058443,-152.34445976,0.00018,2]
[401425891,1768203058453,-2610893.75333016,0.00018,2]
[401425892,1768203058465,-318884.04525655,0.00018,2]
[401425893,1768203058474,-768.26,0.00018,7]
[401425894,1768203058485,-902983.28444743,0.00018,2]
[401425895,1768203059125,-56338.72825719,0.00018,2]
[401425896,1768203059137,-1427.900885,0.00018,2]
[401425897,1768203059149,-495.68719811,0.00018,2]
[401425898,1768203059161,-4237.64394581,0.00018,2]
[401425899,1768203059964,-1.7e-07,0.00018,2]
[401425900,1768203060349,-1668.181417,0.0001778,2]
[401425901,1768203060359,-173.912987,0.0001778,2]
[401425902,1768203060368,-157.637598,0.0001778,2]
[401425903,1768203060377,-179.019883,0.0001778,2]
[401425904,1768203060387,-190.188843,0.0001778,2]
[401425905,1768203060396,-157.637598,0.0001778,2]
[401425906,1768203060406,-179.019883,0.00017947,2]
[401425907,1768203060416,-1668.181417,0.00017947,2]
[401425908,1768203060426,-173.912987,0.00017947,2]
[401425909,1768203060524,-157.637598,0.00017947,2]
[401425910,1768203060534,-179.019883,0.00017947,2]
[401425911,1768203060544,-190.188843,0.00017947,2]
[401425912,1768203060555,-157.637598,0.00017947,2]
[401425913,1768203060565,-3200.67749511,0.00018,2]
[401425914,1768203060688,-483.1,0.00017041,2]
[401425915,1768203060699,-2244.79505997,0.00017471,2]
[401425916,1768203060717,-1224.20494003,0.00017471,2]
[401425917,1768203060727,-492.305865,0.0001778,2]
[401425918,1768203060736,-190.188843,0.0001778,2]
[401425919,1768203060745,-157.637598,0.0001778,2]
[401425920,1768203060754,-105.75275397,0.00017947,2]
[401425921,1768203060765,-386.55311103,0.00017947,2]
[401425922,1768203060775,-1522.40046089,0.00018,2]
[401425923,1768203060791,-266.57989084,0.00018,2]
[401425924,1768203060808,-535.44798845,0.00018,2]
[401425925,1768203060830,-190.188843,0.00017947,2]
[401425926,1768203060840,-698.10498004,0.00018,2]
[401425927,1768203060851,-521.7277719,0.00018,2]
[401425928,1768203060867,-363.710021,0.00018,2]
[401425929,1768203061063,-492.305865,0.0001778,2]
[401425930,1768203061074,-190.188843,0.0001778,2]
[401425931,1768203061085,-157.637598,0.00017947,2]
[401425932,1768203061094,-492.305865,0.00017947,2]
[401425933,1768203061104,-1809.761829,0.00018,2]
[401425934,1768203061115,-1858.17199094,0.00018,2]
[401425935,1768203061126,-652.2842564,0.00018,2]
[401425936,1768203061137,-466.71435071,0.00018,2]
[401425937,1768203061181,-157.637598,0.0001778,2]
[401425938,1768203061191,-4153.75918693,0.00018,2]
[401425939,1768203061743,-500.0,0.00012814,2]
[401425940,1768203061779,-500.0,0.00012814,2]
[401425941,1768203061814,-500.0,0.00012814,2]
[401425942,1768203061849,-500.0,0.00012814,2]
[401425943,1768203061885,-550.0,0.00012814,2]
[401425944,1768203061921,-500.0,0.00012814,2]
[401425945,1768203061956,-500.0,0.00012814,2]
[401425946,1768203061997,500.0,0.00012814,2]
[401425947,1768203062040,500.0,0.00012814,2]
[401425948,1768203062089,500.0,0.00012814,2]
[401425949,1768203062140,500.0,0.00012814,2]
[401425950,1768203062185,500.0,0.00012814,2]
[401425951,1768203062230,400.01,0.00012814,2]
[401425952,1768203062260,99.99,0.00012814,2]